Cogmind - Beta 13 @@@ ROGUE MODE // 2024.05.05 @ 23:11:47 Player: SlyFyer Result: Destroyed by 0K-2HD(M) with Heavy Riot Gun Performance ------------- Evolutions (3) 1500 Regions Visited (11) 2200 Robots Destroyed (91) 455 Value Destroyed (2737) 2737 Prototype IDs (25) 500 Alien Tech Used (0) 0 Bonus (1906) 1906 TOTAL SCORE: 9298 Bonus ------- High Alert Combat Kills 181 Follower Combat Kills 310 Entered Garrisons 200 Used RIF Installer 1000 Aligned with FarCom 300 Friendly Fire -85 Cogmind --------- Core Integrity 0/700 Matter 300/300 Energy 99/100 System Corruption 3% Temperature Cool (0) Movement Core (50) Location -7/Zion Parts ------- > --- POWER (2) -------- (None) > --- PROPULSION (4) --- (None) > --- UTILITY (5) ------ (None) > --- WEAPON (2) ------- (None) > --- INVENTORY (5) ---- Improved Terrain Scanner Advanced Terrain Scan Processor Microactuators Transmission Jammer Advanced ECM Suite Peak State ------------ > --- POWER ------------ Light Deuterium Engine Heavy Deuterium Engine > --- PROPULSION ------- Improved Carbon-fiber Leg Cesium-ion Thruster Cesium-ion Thruster Cesium-ion Thruster > --- UTILITY ---------- Small Storage Unit Weight Redist. System Improved Terrain Scanner Advanced Terrain Scan Processor Melee Analysis Suite > --- WEAPON ----------- Great Axe Longsword +1 > --- INVENTORY -------- Trap Scanner Advanced Terrain Scan Processor Melee Analysis Suite Force Booster Transmission Jammer ECM Suite Long-range Tractor Beam Rocket Launcher [Rating: 48] Favorites ----------- Power Light Nuclear Core Engine Light Ion Engine Power Core Light Nuclear Core Propulsion Compact Wheel Treads Light Treads Leg Aluminum Leg Wheel Compact Wheel Hover Unit Improved Hover Unit Flight Unit Cesium-ion Thruster Utility Huge Storage Unit Device Structural Scanner Storage Huge Storage Unit Processor Melee Analysis Suite Hackware System Shield Protection Hardened Medium Armor Plating Weapon Longsword +1 Energy Gun Heavy Laser Ballistic Gun Heavy Assault Rifle Ballistic Cannon Flak Cannon Launcher Proton Missile Launcher Impact Weapon Hammer Slashing Weapon Longsword +1 Piercing Weapon CR-A16's Pointy Stick Special Melee Weapon Datajack Build | -11 -10 -10 -10 -9 -8 -8 -8 -7 -7 -7 -7 ------- Run | Yrd Mat Min Exi Min Mat Gar Mat Fac Low Low Zio Slots Evolved 6 | . . . . . 4 . . 2 . . . Power 1 | . . . . . 1 . . . . . . Propulsion 2 | . . . . . 1 . . 1 . . . Utility 3 | . . . . . 2 . . 1 . . . Weapon . | . . . . . . . . . . . . Parts Attached 117 | 6 19 . . 2 9 15 41 14 3 7 1 Power 18 | 1 . . . 1 2 2 6 3 2 1 . Engine 7 | 1 . . . . . . 4 2 . . . Core 11 | . . . . 1 2 2 2 1 2 1 . Reactor . | . . . . . . . . . . . . Propulsion 34 | 2 3 . . 1 2 6 13 5 1 1 . Treads 1 | . . . . . . . 1 . . . . Leg 12 | . . . . . . 3 8 1 . . . Wheel 8 | 2 3 . . 1 2 . . . . . . Hover 1 | . . . . . . . 1 . . . . Flight 12 | . . . . . . 3 3 4 1 1 . Utility 31 | 1 3 . . . 2 2 14 5 . 4 . Device 16 | . 2 . . . . 1 6 3 . 4 . Storage 6 | 1 1 . . . . . 3 1 . . . Processor 2 | . . . . . . . 1 1 . . . Hackware 1 | . . . . . 1 . . . . . . Protection 6 | . . . . . 1 1 4 . . . . Artifact . | . . . . . . . . . . . . Weapon 34 | 2 13 . . . 3 5 8 1 . 1 1 Energy Gun 8 | 2 1 . . . . 3 2 . . . . Energy Cannon . | . . . . . . . . . . . . Ballistic Gun 7 | . 6 . . . 1 . . . . . . Ballistic Cannon 2 | . 1 . . . . 1 . . . . . Launcher 2 | . . . . . . . 2 . . . . Special Weapon . | . . . . . . . . . . . . Impact Weapon 7 | . 4 . . . 1 1 1 . . . . Slashing Weapon 6 | . . . . . 1 . 3 1 . 1 . Piercing Weapon 1 | . . . . . . . . . . . 1 Special Melee Weapon 1 | . 1 . . . . . . . . . . Unidentified Prototypes 2 | . . . . . . . 1 1 . . . Parts Lost 54 | . 5 1 . . 3 7 22 1 2 6 7 Power 12 | . 1 . . . . 1 5 1 2 2 . Propulsion 20 | . 1 1 . . 1 4 8 . . 4 1 Utility 11 | . . . . . . 1 6 . . . 4 Weapon 11 | . 3 . . . 2 1 3 . . . 2 Highest Loss Streak 12 | . 1 1 . . 2 4 12 1 2 4 7 To Critical Strikes . | . . . . . . . . . . . . Average Slot Usage (%) 78 | . 86 80 71 100 76 66 88 99 99 79 31 Engine 3 | . 6 . . . . . 8 13 3 . . Core 6 | . . . . 14 15 10 3 1 10 8 . Leg 7 | . . . . . . 5 23 5 . . . Wheel 9 | . 24 23 14 28 16 8 . . . . . Flight 3 | . . . . . . 3 1 24 30 19 4 Device 11 | . 13 14 14 14 9 6 14 16 15 12 4 Storage 9 | . 14 14 14 14 9 9 8 5 7 7 4 Processor 1 | . . . . . . . . 15 15 15 9 Hackware 4 | . . . . . . 9 8 . . . . Protection 2 | . . . . . 8 2 2 . . . . Energy Gun 3 | . 3 . . . . 8 1 . . . . Ballistic Gun 3 | . 11 14 14 14 . . . . . . . Impact Weapon 3 | . 7 14 14 14 7 1 . . . . . Slashing Weapon 5 | . . . . . 8 . 12 15 15 13 4 Naked Turns 46 | . . . . . . . . . . . 46 Heaviest Build 111 | 12 86 86 86 91 104 111 106 23 23 23 11 Greatest Support 49 | 20 26 26 16 26 36 40 49 25 25 25 10 Greatest Overweight (x) 21 | . 3 5 5 3 10 21 9 1 . 2 1 Average Overweight (x) 1 | . . 3 5 3 4 3 . . . . . Largest Inventory Capacity 25 | 8 25 25 25 25 25 25 25 10 8 8 8 Average Capacity 17 | 7 10 25 25 25 25 25 12 7 8 8 7 Most Carried 25 | 5 11 14 15 14 25 25 25 9 8 8 8 Average Carried 15 | 1 7 12 14 13 22 23 11 7 7 7 7 Final Capacity 25 | 8 25 25 25 25 25 25 10 8 8 8 5 Final Carried 25 | 4 11 14 15 13 25 24 10 8 8 8 5 Class Distribution -------------------- 51% | Mutant 27% | Scavenger-Mutant 7% | Scavenger-Assassin Dominant Class ---------------- Mutant | -10/Materials Mutant | -10/Mines Mutant | -10/Exiles Mutant | -9/Mines Mutant | -8/Materials Scavenger-Mutant | -8/Garrison Scavenger-Assassin | -8/Materials Scavenger-Scout | -7/Factory Sprinter | -7/Lower Caves Scavenger-Gladiator | -7/Lower Caves Mutant | -7/Zion Resources | -11 -10 -10 -10 -9 -8 -8 -8 -7 -7 -7 -7 ----------- Run | Yrd Mat Min Exi Min Mat Gar Mat Fac Low Low Zio Matter Collected 1763 | 260 349 50 . . 109 228 549 85 75 55 3 Remotely . | . . . . . . . . . . . . Salvage Created 3133 | 106 507 29 . . 496 300 1232 173 68 222 . Parts 191 | 5 38 2 . . 23 34 69 6 5 9 . Haulers Intercepted 5 | . 2 . . . 1 . 1 1 . . . Recyclers Shooed 1 | . . . . . 1 . . . . . . Parts Field Recycled . | . . . . . . . . . . . . Retrieved Matter . | . . . . . . . . . . . . Parts Self-Destructed 10 | . . . . . . . . . 2 8 . Prevented . | . . . . . . . . . . . . Kills | -11 -10 -10 -10 -9 -8 -8 -8 -7 -7 -7 -7 ------- Run | Yrd Mat Min Exi Min Mat Gar Mat Fac Low Low Zio Combat Hostiles Destroyed 68 | . 11 . . . 5 14 23 4 3 8 . Melee 31 | . . . . . 3 . 13 4 3 8 . Guns 22 | . 10 . . . 1 6 5 . . . . Cannons 9 | . 1 . . . . 8 . . . . . AOE 5 | . . . . . . . 5 . . . . Classes Destroyed 13 | 2 5 . . . 2 2 2 . . . . Worker 5 | . 1 1 . . 2 . 1 . . . . Tunneler 2 | 1 . . . . 1 . . . . . . Hauler 5 | . 2 . . . 1 . 1 1 . . . Recycler 5 | 1 . . . . 2 . 2 . . . . Operator 2 | . . . . . 1 . 1 . . . . Watcher 4 | . 2 . . . 1 . 1 . . . . Swarmer 32 | . 3 . . . 1 7 8 3 3 7 . Cutter 2 | . . . . . . 2 . . . . . Grunt 18 | . 8 . . . 3 1 5 1 . . . Sentry 10 | . . . . . 1 2 7 . . . . Specialist 2 | . . . . . . . 2 . . . . Hunter 2 | . . . . . . . 1 . . 1 . Programmer 2 | . . . . . . 2 . . . . . Best Kill Streak 5 | 2 3 1 . . 3 4 5 3 3 5 . Combat Bots Only 5 | . 2 . . . 3 4 4 3 3 5 . Max Kills in Single Turn 3 | 1 1 1 . . 1 2 3 1 1 1 . Gunslinging . | . . . . . . . . . . . . Exploded 3 | . . . . . . . 3 . . . . Melee 1 | . . . . . 1 . 1 1 1 1 . Uniques/NPCs Destroyed . | . . . . . . . . . . . . Combat | -11 -10 -10 -10 -9 -8 -8 -8 -7 -7 -7 -7 -------- Run | Yrd Mat Min Exi Min Mat Gar Mat Fac Low Low Zio Hostile Shots Fired 489 | . 69 9 . . 18 94 145 8 14 48 84 Missed 151 | . 10 2 . . 5 22 49 3 6 18 36 Damage Taken 5234 | 37 624 86 . . 150 941 1941 74 124 396 861 Core 1367 | . 127 12 . . . 210 314 13 18 91 582 Absorbed by Shields . | . . . . . . . . . . . . Core Remaining (%) 49 | 100 . . . 44 . . 4 . . . . Volleys Fired 161 | 5 66 2 . . 3 50 35 . . . . Largest 2 | 2 2 1 . . 1 2 2 . . . . Hottest 138 | 80 80 23 . . 23 138 108 . . . . Shots Fired 220 | 10 93 2 . . 3 69 43 . . . . Gun 174 | 10 79 2 . . 3 46 34 . . . . Cannon 37 | . 14 . . . . 23 . . . . . Launcher 9 | . . . . . . . 9 . . . . Special . | . . . . . . . . . . . . Kinetic 96 | . 68 2 . . 3 23 . . . . . Thermal 80 | . . . . . . 46 34 . . . . Explosive . | . . . . . . . . . . . . Electromagnetic 44 | 10 25 . . . . . 9 . . . . Robot Hit Streak 8 | 2 7 . . . 2 8 6 . . . . Robot Miss Streak 6 | 3 4 . . . 1 6 2 . . . . Penetration Max . | . . . . . . . . . . . . Secondary Targets 2 | . 2 . . . . . . . . . . Max Gunslinging Chain 1 | . 1 . . . . . . . . . . Shots Hit Robots 211 | 4 56 3 . . 24 38 61 10 4 10 1 Core Hits 117 | 3 20 . . . 9 37 32 5 3 7 1 Critical Kills 1 | . 1 . . . . . . . . . . Critical Parts Destroyed 2 | . . 1 . . 1 . . . . . . Critical Strikes 9 | . 1 1 . . 1 . 4 1 . 1 . Destroy 1 | . 1 . . . . . . . . . . Smash 2 | . . 1 . . 1 . . . . . . Sever 6 | . . . . . . . 4 1 . 1 . Melee Attacks 230 | . 17 7 . . 35 11 101 25 11 21 2 Impact 35 | . 16 7 . . 8 4 . . . . . Slashing 192 | . . . . . 27 7 101 25 11 21 . Piercing 2 | . . . . . . . . . . . 2 Sneak Attacks 16 | . 1 1 . . 8 . 5 1 . . . Combat Hostiles 3 | . . . . . . . 3 . . . . Follow-up Attacks 7 | . . . . . 4 . 3 . . . . Damage Inflicted 7155 | 79 862 109 . . 1386 753 2686 534 200 511 35 Guns 1647 | 52 704 . . . 32 423 436 . . . . Cannons 488 | . 158 . . . . 330 . . . . . Explosions 456 | 27 . . . . . . 429 . . . . Melee 4564 | . . 109 . . 1354 . 1821 534 200 511 35 Ramming . | . . . . . . . . . . . . Kinetic 1011 | . 649 . . . 32 330 . . . . . Thermal 944 | 27 . . . . . 423 494 . . . . Explosive . | . . . . . . . . . . . . Electromagnetic 636 | 52 213 . . . . . 371 . . . . Impact 255 | . . 109 . . 146 . . . . . . Slashing 4274 | . . . . . 1208 . 1821 534 200 511 . Piercing 35 | . . . . . . . . . . . 35 Highest Corruption 5 | . . . . . . 2 5 . . . 3 Average Corruption 2 | . . . . . . 2 3 . . . 3 Corruption Purged . | . . . . . . . . . . . . Corruption Blocked . | . . . . . . . . . . . . Effects 51 | . . . . . . 17 34 . . . . Message Errors 11 | . . . . . . 2 9 . . . . Matter Fused 17 | . . . . . . 7 10 . . . . Heat Flow Errors 5 | . . . . . . 2 3 . . . . Energy Discharges 6 | . . . . . . 3 3 . . . . Data Loss (minor) 6 | . . . . . . 1 5 . . . . Data Loss (major) 2 | . . . . . . . 2 . . . . Misfires 1 | . . . . . . 1 . . . . . Alerts 3 | . . . . . . 1 2 . . . . Overload Shots . | . . . . . . . . . . . . Overflow Damage 783 | 2 1 54 . . 426 6 231 14 27 22 . Projectiles 7 | . 1 . . . . 6 . . . . . Explosions 7 | 2 . . . . . . 5 . . . . Melee 769 | . . 54 . . 426 . 226 14 27 22 . Knockbacks 11 | . . 1 . . 2 8 . . . . . Impact 3 | . . 1 . . 2 . . . . . . Kinetic 8 | . . . . . . 8 . . . . . Secondary . | . . . . . . . . . . . . Self-Inflicted Damage 39 | 37 . . . . . . 2 . . . . Shots 2 | 1 . . . . . . 1 . . . . Rammed . | . . . . . . . . . . . . Targets Rammed . | . . . . . . . . . . . . Kicked . | . . . . . . . . . . . . Crushed . | . . . . . . . . . . . . Highest Temperature 407 | 84 108 2 . . . 407 237 . . . . Average Temperature 105 | 41 33 2 . . . 160 58 . . . . Received Heat Transfer 1035 | . 297 66 . . 45 147 405 . . 12 63 Effects 5 | . . . . . . 4 1 . . . . Shutdowns 1 | . . . . . . 1 . . . . . Interference 1 | . . . . . . . 1 . . . . Short Circuit 2 | . . . . . . 2 . . . . . Damage (minor) 1 | . . . . . . 1 . . . . . Siege Activations . | . . . . . . . . . . . . Robots Corrupted . | . . . . . . . . . . . . Combat Hostiles . | . . . . . . . . . . . . Parts Fried . | . . . . . . . . . . . . Impact Corruptions 3 | . . 1 . . 2 . . . . . . Robots Melted . | . . . . . . . . . . . . Combat Hostiles . | . . . . . . . . . . . . Parts Melted 2 | . . . . . . 1 1 . . . . Heat Transferred 1709 | 50 . . . . . 758 901 . . . . Parts Sabotaged . | . . . . . . . . . . . . Parts Stolen . | . . . . . . . . . . . . Parts Stripped . | . . . . . . . . . . . . Power Chain Reactions 2 | 1 . . . . . . 1 . . . . Alert | -11 -10 -10 -10 -9 -8 -8 -8 -7 -7 -7 -7 ------- Run | Yrd Mat Min Exi Min Mat Gar Mat Fac Low Low Zio Peak Influence 833 | 10 269 156 . . 181 833 612 295 . . . Initial 405 | . 6 65 . . . . 405 183 . . . Average 314 | 3 123 118 . . 90 523 372 217 . . . Maximum Alert Level 3 | . 1 . . . . 3 2 1 . . . Low Security (%) 41 | 100 94 100 . 100 100 11 5 37 . . . Level 1 24 | . 5 . . . . 19 50 62 . . . Level 2 22 | . . . . . . 32 44 . . . . Level 3 11 | . . . . . . 37 . . . . . Level 4 . | . . . . . . . . . . . . Level 5 . | . . . . . . . . . . . . High Security . | . . . . . . . . . . . . Max Security . | . . . . . . . . . . . . Squads Dispatched 11 | . 2 . . . 1 . 7 1 . . . Investigation 2 | . 1 . . . . . 1 . . . . Extermination . | . . . . . . . . . . . . Reinforcement 9 | . 1 . . . 1 . 6 1 . . . Assault . | . . . . . . . . . . . . Garrison . | . . . . . . . . . . . . Intercept . | . . . . . . . . . . . . Searches Triggered . | . . . . . . . . . . . . Construction Impeded . | . . . . . . . . . . . . Haulers Reinforced 1 | . . . . . . . . 1 . . . Active Scanning Responses . | . . . . . . . . . . . . Cargo Convoy Interrupts . | . . . . . . . . . . . . Stealth | -11 -10 -10 -10 -9 -8 -8 -8 -7 -7 -7 -7 --------- Run | Yrd Mat Min Exi Min Mat Gar Mat Fac Low Low Zio Distress Signals 3 | . . . . . . . 3 . . . . Communications Jammed . | . . . . . . . . . . . . Distress Signals . | . . . . . . . . . . . . Times Spotted 157 | . 23 4 . . 10 22 45 4 5 9 35 Peak Tracking Total 27 | . 3 2 . . 4 5 5 3 3 5 27 Tactical Retreats 20 | . 3 . . . . 2 12 . 1 . 2 Traps | -11 -10 -10 -10 -9 -8 -8 -8 -7 -7 -7 -7 ------- Run | Yrd Mat Min Exi Min Mat Gar Mat Fac Low Low Zio Traps Triggered 11 | . 1 . . . . 4 6 . . . . Indirectly 1 | . . . . . . . 1 . . . . Trap Hack Attempts 19 | . 19 . . . . . . . . . . Triggered . | . . . . . . . . . . . . Disarmed 1 | . 1 . . . . . . . . . . Reprogrammed . | . . . . . . . . . . . . Reused . | . . . . . . . . . . . . Traps Extracted . | . . . . . . . . . . . . Installed . | . . . . . . . . . . . . Triggered . | . . . . . . . . . . . . Machines | -11 -10 -10 -10 -9 -8 -8 -8 -7 -7 -7 -7 ---------- Run | Yrd Mat Min Exi Min Mat Gar Mat Fac Low Low Zio Machines Disabled 9 | . 1 . . . . 5 1 1 1 . . Max in Single Turn 1 | . 1 . . . . 1 1 1 1 . . Garrison Access 2 | . . . . . . . . 2 . . . Garrison Relay 2 | . . . . . . 2 . . . . . Machines Repaired . | . . . . . . . . . . . . Machines Dismantled . | . . . . . . . . . . . . Machines Sabotaged . | . . . . . . . . . . . . Overloaded Fab Kills . | . . . . . . . . . . . . Hacking | -11 -10 -10 -10 -9 -8 -8 -8 -7 -7 -7 -7 --------- Run | Yrd Mat Min Exi Min Mat Gar Mat Fac Low Low Zio Machines Accessed 26 | . 7 . 1 . 4 3 7 3 1 . . Terminals 18 | . 6 . . . 3 3 6 . . . . Fabricators 1 | . . . . . . . . 1 . . . Repair Stations . | . . . . . . . . . . . . Recycling Units 1 | . 1 . . . . . . . . . . Scanalyzers 1 | . . . . . . . 1 . . . . Garrison Access 3 | . . . . . 1 . . 2 . . . Total Hacks 46 | . 11 . 1 . 10 5 15 3 1 . . Successful 25 | . 6 . 1 . 5 2 7 3 1 . . Failed 21 | . 5 . . . 5 3 8 . . . . Catastrophic 1 | . . . . . . 1 . . . . . Database Lockouts . | . . . . . . . . . . . . Manual 15 | . 9 . 1 . . . 5 . . . . Terminals 34 | . 10 . . . 7 5 12 . . . . Fabricators 1 | . . . . . . . . 1 . . . Repair Stations . | . . . . . . . . . . . . Recycling Units 1 | . 1 . . . . . . . . . . Scanalyzers 3 | . . . . . . . 3 . . . . Garrison Access 5 | . . . . . 3 . . 2 . . . Terminal Hacks 14 | . 2 . 1 . 4 2 4 . 1 . . Open Door 2 | . . . . . . 1 . . 1 . . Emergency Access Points 1 | . . . . . . 1 . . . . . Terminal Index 2 | . 1 . . . 1 . . . . . . Alert Level 3 | . . . . . 2 . 1 . . . . Unreport Threat 1 | . . . . . . . 1 . . . . Locate Traps 1 | . . . . . . . 1 . . . . Transport Status 1 | . . . . . . . 1 . . . . Hauler Manifests 1 | . 1 . . . . . . . . . . Zone Layout 1 | . . . . . 1 . . . . . . Derelict Proto ID Bank 1 | . . . 1 . . . . . . . . Fabricator Hacks 1 | . . . . . . . . 1 . . . Network Status 1 | . . . . . . . . 1 . . . Repair Station Hacks . | . . . . . . . . . . . . Recycling Unit Hacks . | . . . . . . . . . . . . Scanalyzer 2 | . . . . . . . 2 . . . . Insert Component 1 | . . . . . . . 1 . . . . Analyze 1 | . . . . . . . 1 . . . . Garrison Access Hacks 3 | . . . . . 1 . . 2 . . . Unlock Access 1 | . . . . . 1 . . . . . . Seal Access 2 | . . . . . . . . 2 . . . Unauthorized Hacks 5 | . 4 . . . . . 1 . . . . Terminals 4 | . 3 . . . . . 1 . . . . Assimilate 2 | . 2 . . . . . . . . . . Botnet 1 | . . . . . . . 1 . . . . Operators 1 | . 1 . . . . . . . . . . Fabricators . | . . . . . . . . . . . . Repair Stations . | . . . . . . . . . . . . Recycling Units 1 | . 1 . . . . . . . . . . Tunnel 1 | . 1 . . . . . . . . . . Scanalyzers . | . . . . . . . . . . . . Garrison Access . | . . . . . . . . . . . . Data Cores Recovered . | . . . . . . . . . . . . Used . | . . . . . . . . . . . . Hacking Detections 9 | . 1 . . . 3 2 3 . . . . Full Trace Events . | . . . . . . . . . . . . Feedback Events . | . . . . . . . . . . . . Feedback Blocked . | . . . . . . . . . . . . Robot Schematics Acquired . | . . . . . . . . . . . . Robots Built . | . . . . . . . . . . . . Authchips . | . . . . . . . . . . . . Time . | . . . . . . . . . . . . Total Robot Build Rating . | . . . . . . . . . . . . Part Schematics Acquired 1 | . . . . . . . 1 . . . . Parts Built . | . . . . . . . . . . . . Authchips . | . . . . . . . . . . . . Time . | . . . . . . . . . . . . Total Part Build Rating . | . . . . . . . . . . . . Parts Repaired . | . . . . . . . . . . . . Time . | . . . . . . . . . . . . Parts Recycled . | . . . . . . . . . . . . Recycled Matter . | . . . . . . . . . . . . Retrieved Matter . | . . . . . . . . . . . . Retrieved Components . | . . . . . . . . . . . . Parts Scanalyzed 1 | . . . . . . . 1 . . . . Part Schematics Acquired 1 | . . . . . . . 1 . . . . Parts Damaged . | . . . . . . . . . . . . Bothacking | -11 -10 -10 -10 -9 -8 -8 -8 -7 -7 -7 -7 ------------ Run | Yrd Mat Min Exi Min Mat Gar Mat Fac Low Low Zio Used RIF Installer 2 | . . . . . . 2 . . . . . Hotswap 1 | . . . . . . 1 . . . . . Robots Hacked . | . . . . . . . . . . . . Non-combat . | . . . . . . . . . . . . Combat . | . . . . . . . . . . . . Robot Hacks Applied . | . . . . . . . . . . . . Relay Couplers Released 13 | . . . . . . 13 . . . . . Machine Destruction 10 | . . . . . . 10 . . . . . Programmers 3 | . . . . . . 3 . . . . . Fabnet Peak Effective % . | . . . . . . . . . . . . Robots Rewired . | . . . . . . . . . . . . Allies Hacked . | . . . . . . . . . . . . Hacks Repelled 1 | . . . . . . 1 . . . . . Allies | -11 -10 -10 -10 -9 -8 -8 -8 -7 -7 -7 -7 -------- Run | Yrd Mat Min Exi Min Mat Gar Mat Fac Low Low Zio Total Allies 6 | . 2 3 . . . 1 . . . . . Largest Group 4 | . 1 4 3 3 3 4 3 . . . . Highest-Rated Group 78 | . 10 50 39 39 39 78 39 . . . . Highest-Rated Ally 39 | . 10 16 16 16 16 39 16 . . . . Total Orders 6 | . 2 . . . 2 2 . . . . . STAY 3 | . 1 . . . 1 1 . . . . . FOLLOW 3 | . 1 . . . 1 1 . . . . . Ally Attacks 66 | . . 21 . . 10 29 6 . . . . Total Damage 573 | . . 228 . . 106 194 45 . . . . Kills 15 | . . 4 . . 4 7 . . . . . Allies Corrupted . | . . . . . . . . . . . . Allies Melted . | . . . . . . . . . . . . Intel | -11 -10 -10 -10 -9 -8 -8 -8 -7 -7 -7 -7 ------- Run | Yrd Mat Min Exi Min Mat Gar Mat Fac Low Low Zio Robot Analysis Total . | . . . . . . . . . . . . Derelict Logs Recovered 2 | . . . . . . . . . 1 . 1 Drone Launches . | . . . . . . . . . . . . Drone Recoveries . | . . . . . . . . . . . . Exploration | -11 -10 -10 -10 -9 -8 -8 -8 -7 -7 -7 -7 ------------- Run | Yrd Mat Min Exi Min Mat Gar Mat Fac Low Low Zio Turns Passed 7312 | 61 1107 148 453 77 831 1910 1802 343 184 230 166 Spaces Moved 5126 | 43 723 79 258 54 472 779 783 701 576 369 289 Core 127 | 11 . . . . . . 9 . . . 107 Treads . | . . . . . . . . . . . . Legs 804 | . . . . . . 224 580 . . . . Wheels 2169 | 32 723 79 258 54 472 551 . . . . . Hover 12 | . . . . . . . 12 . . . . Flight 2014 | . . . . . . 4 182 701 576 369 182 Fastest Speed 26 | 50 80 135 175 135 116 116 30 26 26 26 35 Average Speed 106 | 72 98 147 175 135 148 217 123 36 26 45 54 Slowest Speed 1715 | 80 135 175 175 135 230 1715 750 119 26 195 115 Overloaded Moves 60 | . . . . . . . 60 . . . . Propulsion Burnouts . | . . . . . . . . . . . . Robots Hopped . | . . . . . . . . . . . . Cave-ins Triggered . | . . . . . . . . . . . . Exploration Rate (%) 46 | 3 94 15 69 12 24 83 78 24 64 48 46 Regions Visited 11 Branch Regions 6 Pre-discovered Areas 1 | . 1 . . . . . . . . . . Known Exits Taken 1 | . . . . . 1 . . . . . . Unknown Exits Taken 9 | 1 1 1 1 1 . . 1 1 1 1 . Scrap Searched 4 | . . . . . . . . . 2 1 1 Spaces Dug 95 | . 11 1 . . 7 1 54 10 3 8 . Terrain Destroyed 99 | 3 11 1 . . 7 1 55 10 3 8 . Melee 95 | . 11 1 . . 7 1 54 10 3 8 . Projectile . | . . . . . . . . . . . . AOE 4 | 3 . . . . . . 1 . . . . Terrain Rammed . | . . . . . . . . . . . . Walls Destroyed . | . . . . . . . . . . . . Machines Disabled . | . . . . . . . . . . . . Actions | -11 -10 -10 -10 -9 -8 -8 -8 -7 -7 -7 -7 --------- Run | Yrd Mat Min Exi Min Mat Gar Mat Fac Low Low Zio Total 6492 | 62 993 97 260 58 571 912 1471 766 599 411 292 Wait 683 | . 131 7 . 3 33 11 472 10 8 8 . Move 5115 | 42 722 78 257 53 471 778 782 700 575 368 289 Hop . | . . . . . . . . . . . . Pick Up 97 | 9 13 3 2 . 22 11 28 7 1 1 . Fast Attach 36 | 1 6 . . . 2 . 14 6 2 4 1 Attach 51 | 5 4 . . 2 5 10 21 4 . . . Detach 2 | . 1 . . . . . . . . 1 . Swap 30 | . 9 . . . 2 5 6 4 1 3 . Drop 59 | . 5 . 1 . 6 5 22 12 2 6 . Fire 161 | 5 66 2 . . 3 50 35 . . . . Melee 207 | . 17 7 . . 27 10 91 23 10 20 2 Ram . | . . . . . . . . . . . . Kick . | . . . . . . . . . . . . Crush . | . . . . . . . . . . . . Escape Stasis 32 | . . . . . . 32 . . . . . Rewire . | . . . . . . . . . . . . Trap 19 | . 19 . . . . . . . . . . Miscellaneous . | . . . . . . . . . . . . Route ------- -11/Scrapyard -10/Materials (discovered 5 exits: [*Mat x3] / [*Min x2]) -10/Mines -10/Exiles -9/Mines -8/Materials (discovered 2 exits: *Fac / Gar) -8/Garrison (discovered 3 exits: *Mat x3) -8/Materials -7/Factory -7/Lower Caves -7/Lower Caves (discovered 2 exits: [*Fac] / [*Zio]) -7/Zion (discovered 1 exit: [*Pro]) History --------- Turn | Location | Event 8 | -11/Scrapyard | Discovered new exit (range 15) 62 | -11/Scrapyard | Entered Materials 300 | -10/Materials | Build established: Mutant 397 | -10/Materials | Discovered new exit (range 16) 413 | -10/Materials | Discovered new exit (range 11) 706 | -10/Materials | Discovered new exit (range 5) 799 | -10/Materials | Core integrity fell below 50% 942 | -10/Materials | Discovered new exit (range 13) 1094 | -10/Materials | Discovered new exit (range 13) 1169 | -10/Materials | Entered Mines 1169 | -10/Mines | Accompanied by 1 ally 1205 | -10/Mines | Assisted by bots powering up and referring to "LRC-V3" 1249 | -10/Mines | Discovered new exit (range 15) 1317 | -10/Mines | Entered Exiles 1317 | -10/Exiles | Accompanied by 3 allies 1359 | -10/Exiles | Met 8R-AWN 1391 | -10/Exiles | Met EX-HEX 1442 | -10/Exiles | Met EX-BIN 1463 | -10/Exiles | Aligned with FarCom system 1464 | -10/Exiles | Given EX-Vault access code 1506 | -10/Exiles | Opened EX-Vault 1517 | -10/Exiles | Found Longsword +1 1553 | -10/Exiles | Warned to stay clear of 0b10 Research branches 1673 | -10/Exiles | Met EX-DEC 1747 | -10/Exiles | Discovered new exit (range 14) 1770 | -10/Exiles | Left Exiles lab with Longsword +1 1770 | -10/Exiles | Entered Mines 1770 | -9/Mines | Accompanied by 3 allies 1828 | -9/Mines | Discovered new exit (range 10) 1847 | -9/Mines | Entered Materials 1847 | -8/Materials | Accompanied by 3 allies 1847 | -8/Materials | Evolved 4 slots: Power x1, Propulsion x1, Utility x2 2285 | -8/Materials | Discovered new exit (range 11) 2295 | -8/Materials | Identified exit to Garrison 2678 | -8/Materials | Entered Garrison 2678 | -8/Garrison | Accompanied by 3 allies 2708 | -8/Garrison | Triggered checkpoint 2864 | -8/Garrison | Build established: Scavenger-Mutant 2864 | -8/Garrison | Triggered checkpoint 2997 | -8/Garrison | Discovered new exit (range 12) 3068 | -8/Garrison | Rescued a captive Derelict 3244 | -8/Garrison | Triggered checkpoint 3284 | -8/Garrison | Lost 4 parts (1p1n1u1w) 3350 | -8/Garrison | Triggered checkpoint 3447 | -8/Garrison | Garrison Relay disabled 3458 | -8/Garrison | Garrison Relay disabled 3501 | -8/Garrison | Discovered new exit (range 12) 3542 | -8/Garrison | Build established: Mutant 3546 | -8/Garrison | Installed Relay Interface Framework 3626 | -8/Garrison | Triggered checkpoint 3691 | -8/Garrison | Discovered new exit (range 10) 3770 | -8/Garrison | Lost 3 parts (3n) 3810 | -8/Garrison | Expanded RIF knowledge: Hotswap 4379 | -8/Garrison | Build established: Scavenger-Mutant 4588 | -8/Garrison | Entered Materials 4588 | -8/Materials | Accompanied by 3 allies 4735 | -8/Materials | Lost 4 parts (2p1u1w) 4940 | -8/Materials | Core integrity fell below 50% 5013 | -8/Materials | Core integrity fell below 20% 5053 | -8/Materials | Lost 12 parts (2p4n4u2w) 5692 | -8/Materials | Build established: Mutant 6064 | -8/Materials | Build established: Scavenger-Assassin 6367 | -8/Materials | Discovered new exit (range 13) 6390 | -8/Materials | Entered Factory 6390 | -7/Factory | Evolved 2 slots: Propulsion x1, Utility x1 6732 | -7/Factory | Discovered new exit (range 8) 6733 | -7/Factory | Entered Lower Caves 6891 | -7/Lower Caves | Learned Factory stockpile data 6906 | -7/Lower Caves | Attacked by a delusional Derelict stockpiling parts 6916 | -7/Lower Caves | Discovered new exit (range 5) 6917 | -7/Lower Caves | Entered another Lower Caves area 6920 | -7/Lower Caves | Discovered new exit (range 9) 6958 | -7/Lower Caves | Spotted B-75 Beast 7049 | -7/Lower Caves | Lost 4 parts (1p3n) 7146 | -7/Lower Caves | Discovered new exit (range 3) 7147 | -7/Lower Caves | Entered Zion 7176 | -7/Zion | Given A8's code to call for help 7183 | -7/Zion | Discovered new exit (range 15) 7197 | -7/Zion | Found CR-A16's Pointy Stick 7240 | -7/Zion | RIF detected upon attempting to enter Zion 7240 | -7/Zion | Attacked by Zionites 7241 | -7/Zion | Spotted X1-HA5(B) 7241 | -7/Zion | Spotted ZA-6TB(B) 7259 | -7/Zion | Core integrity fell below 50% 7276 | -7/Zion | Learned Factory emergency access door positions 7298 | -7/Zion | Lost 7 parts (1n4u2w) 7300 | -7/Zion | Core integrity fell below 20% 7313 | -7/Zion | Destroyed by 0K-2HD(M) with Heavy Riot Gun Last Messages --------------- 07278_ FA-TFI(z) pulls a Mak. Axe out of the Twisted Machinery. 07282_ KR-DB8(z) pulls a Mak. Spear out of the Twisted Machinery. 3D-X7B(z) bursts out of the Twisted Machinery. 07284_ 3D-X7B(z) pulls a Mak. Hammer out of the Twisted Machinery. 07285_ XR-H9M(z) pulls a Mak. Sword out of the Twisted Machinery. 07291_ BQ-RAH(z) pulls a Mak. Shrapnel Gun out of the Twisted Machinery. 07294_ VM-DBY(z) heat damages Weapon Cycler. 07294_ G7-Z9P(m) fits Backup Propulsion III on XR-H9M(z). 07294_ VM-DBY(z) pulls a Mak. Shrapnel Gun out of the Twisted Machinery. HI-D52(z) bursts out of the Twisted Machinery. L6-BLI(z) bursts out of the Twisted Machinery. 07297_ L6-BLI(z) pulls a Mak. Laser out of the Twisted Machinery. 07299_ HI-D52(z) pulls a Mak. Spear out of the Twisted Machinery. 64-2C5(z) bursts out of the Twisted Machinery. 07303_ 64-2C5(z) pulls a Mak. Hammer out of the Twisted Machinery. 07303_ 2C-VA6(z) pulls a Mak. Shrapnel Gun out of the Twisted Machinery. 07306_ JO-JSP(z) pulls a Mak. Laser out of the Twisted Machinery. 07309_ Critical hit (Burn: +37). A7-HZP(z) bursts out of the Twisted Machinery. 07312_ 88-GZ6(z) pulls a Mak. Spear out of the Twisted Machinery. Map ----- +----------------------------------------------------+ | ??????????????????????"""" "" """" | | ???????????????????????#" "" ""#"" | | ??????????????????????##" """"## | | ??????????????????????#"" """###? | | ??????????????????????#" """"""" """"#?? | | ?????????????????????#"" """""" """##?? | | ?????????????????????"#" "" """""" "##??? | | ??????????????????????#" " ""#??? | | ??????????????????????#"""" " ""#??? | | ??????????????????????""""" " """"" """#??? | | ????????????????????####""" """"" """"??? | | ???????????????#???##" """ ""#" ""##??? | | ???????????????#!!!#"# """" """ """" ""????? | | ????????????????#!!! "" """" """" "?????? | | ???????????????#" !!#" "" """ "" "?????? | | ????????????????!!!" # " z "?????? | | ???????????????????##" " z "?????? | | ????????????????????### """" ???????? | | ??????????????????????# c """""" ??????? | | ??????????????????????# ""#"#" ??????? | | ?????????????????????##" """#"" ??????? | | ?????????????????????#""" ""#""" ???????? | | ???????????????????"?#""" """"" ??????????? | | ???????????????"?"""""#"" """ ""#" ???????? | | ????????????#" """"""""""" """ ???????? | | ????????????#" z @ z """"" ???????? | | ????????????"" M Mz ""#"" ?????????? | | ????????????"" """"""" z ""#????????????? | | ??????????? """""" """"???????????? | | ???????????c ????"##"" """"???????????? | | ?????????????????????#"" z """" ???????????? | | ?????????????????????"" """" ???????????? | | ?????????????????????" "" ""#"" ??????????? | | ????????????????????"" """"""#" ???????????? | | ????????????????????"" """##"??????????????? | | ????????????????????"" """##????????????????? | | ????????????????????"" """"""??????????????????? | | ????????????????????#""""""""????????????????????? | | ??????????????????????"""?""?????????????????????? | | ?????????????????????????????????????????????????? | | ?????????????????????????????????????????????????? | | ?????????????????????????????????????????????????? | | ?????????????????????????????????????????????????? | | ?????????????????????????????????????????????????? | | ?????????????????????????????????????????????????? | | ?????????????????????????????????????????????????? | | ?????????????????????????????????????????????????? | | ?????????????????????????????????????????????????? | | ?????????????????????????????????????????????????? | | ?????????????????????????????????????????????????? | +----------------------------------------------------+ Best States ------------- Heat Dissipation 45 Energy Generation 27 Energy Capacity 350 Matter Stores 300 Matter Capacity 300 Sight Range 16 Terrain Scan Range 16 Terrain Scan Density 210 ECM Strength 1 Additional Mass Support 6 Armor Coverage 375 Melee Speed Boost 20 Evasion (%) 64 Melee Accuracy 5 Defensive Hacking 10 Item Schematics ----------------- Melee Analysis Suite | -8/Materials | Scanalyzed Robot Schematics ------------------ None Fabricated ------------ Nothing Alien Tech Used ----------------- None Achievements -------------- None Challenges ------------ None Game ------ Seed BombardmentFlightMonowheel Manual? 0 Play Time 01:28:01 Cumulative 77.0 hours Start 2024.05.04 @ 20:57:20 End 2024.05.05 @ 23:11:47 Sessions 2 Manual Loads 0 Difficulty Rogue Special Mode None Game No. 33 Rogue 3 Adventurer 30 Explorer 0 Win Type - Total 3 Types 2/1/0/0/0/0/0/0/0 Lore% 49 Gallery% 65 Achievement% 60 Wizard Run 0 Options --------- Layout 0 ASCII 0 Keyboard 0 Movement Mouse Keybinds 0 Fullscreen 0 Font 14/Smallcaps Map View 208x55 Zoom Use 0% Tactical HUD 1 Map Filters NONE Filters NONE Steam 1 RUN: f1ad3f9d-2301-4d0e-a880-9809ae1d59cb